bitfinex/quotes_ETHUSD_20251224
["timestamp","ask_amount","ask_price","bid_price","bid_amount"]
[1766567010646,0.001,2928.9,2928.5,1.39774717]
[1766567010856,0.001,2929.0,2928.6,1.397746]
[1766567011054,0.001,2929.0,2928.7,1.3593]
[1766567011525,0.001,2929.0,2928.8,0.03414367]
[1766567011857,0.001,2929.2,2928.8,1.39244367]
[1766567012148,0.001,2929.3,2928.9,1.34275095]
[1766567012747,2.7956,2929.4,2928.8,0.03414367]
[1766567012949,2.7956,2929.4,2928.8,1.3385]
[1766567013118,2.7956,2929.4,2928.9,0.03414251]
[1766567013540,2.7956,2929.4,2928.9,1.37264251]
[1766567015146,2.7956,2929.4,2928.0,5.82888804]
[1766567015147,2.81951647,2929.3,2928.0,5.82888804]
[1766567015354,2.81951647,2929.3,2928.0,1.3321]
[1766567015355,2.7956,2929.1,2928.0,1.3321]
[1766567015522,4.49678804,2929.2,2928.2,3.41500152]
[1766567015523,2.7956,2928.9,2928.2,3.41500152]
[1766567015720,2.7956,2928.7,2928.2,3.41500152]
[1766567015953,2.7956,2928.7,2928.2,4.32155989]
[1766567016126,2.7956,2928.7,2928.2,5.65765989]
[1766567016653,2.7956,2928.7,2928.3,0.0341495]
[1766567016822,2.7956,2928.7,2928.3,1.3702495]
[1766567017218,2.7956,2928.7,2928.1,0.893]
[1766567017620,2.7956,2928.7,2928.0,1.333]
[1766567017830,2.7956,2928.7,2928.0,1.80784423]
[1766567021856,2.7956,2928.7,2928.0,5.22311949]
[1766567023638,2.7956,2928.7,2928.0,5.22511949]
[1766567023839,2.7956,2928.7,2928.1,1.3154]
[1766567024656,2.82975782,2928.7,2928.1,1.3154]
[1766567028367,2.7956,2928.7,2928.1,1.3154]
[1766567029353,2.7956,2928.7,2928.2,0.03415067]
[1766567029562,2.7956,2928.7,2928.1,1.3154]
[1766567029741,0.03415782,2928.6,2928.1,1.3154]
[1766567030064,2.7592,2928.6,2928.1,1.3154]
[1766567031181,2.7592,2928.6,2928.0,0.47684423]
[1766567031342,3.37997609,2928.6,2928.0,0.002]
[1766567031542,3.41413391,2928.6,2928.0,0.002]
[1766567031765,4.0695366,2928.6,2928.0,0.002]
[1766567032072,2.7592,2928.5,2928.0,0.002]
[1766567032273,2.7592,2928.4,2928.0,0.002]
[1766567032483,2.7592,2928.4,2928.0,1.2933]
[1766567034174,2.7592,2928.4,2928.0,0.002]
[1766567034469,3.03512,2928.4,2928.0,0.002]
[1766567034645,3.03512,2928.4,2927.6,0.002]
[1766567034646,2.79335782,2928.3,2927.6,0.895]
[1766567035539,2.7592,2928.2,2927.6,0.895]
[1766567036158,2.7592,2928.2,2927.6,0.002]
[1766567038273,2.7592,2928.2,2927.6,1.2782]
[1766567038441,2.7592,2928.2,2927.7,0.0341565]
[1766567039266,3.40761882,2928.2,2927.7,0.0341565]
[1766567039473,3.40761882,2928.2,2927.6,1.31235767]
[1766567042400,2.5676,2928.0,2927.6,0.002]
[1766567043755,2.5676,2928.0,2927.6,1.2668]
[1766567043956,2.5676,2928.0,2927.7,0.0341565]
[1766567044552,2.5676,2928.0,2927.6,1.30095767]
[1766567044767,2.5676,2928.0,2927.6,1.2668]
[1766567045873,2.5676,2928.0,2927.6,0.002]
[1766567046079,2.5676,2927.9,2927.6,0.002]
[1766567051480,2.60175782,2928.2,2927.6,1.2498]
[1766567052595,8.09492148,2930.4,2927.8,1.2458]
[1766567052596,2.5676,2928.9,2927.8,1.2458]
[1766567052761,2.60175782,2928.8,2927.9,1.2458]
[1766567052987,2.60175782,2928.8,2928.0,1.2438]
[1766567053263,2.5676,2928.7,2928.1,1.27795183]
[1766567053483,0.03415782,2928.6,2928.1,1.27795183]
[1766567053877,2.60175782,2928.6,2927.9,0.66347215]
[1766567054178,2.60175782,2928.6,2927.9,1.90527215]
[1766567054381,2.60175782,2928.6,2928.0,1.2418]
[1766567054692,2.60175782,2928.6,2928.1,3.41517044]
[1766567054871,2.60175782,2928.6,2928.2,1.2418]
[1766567056590,0.03415782,2928.8,2928.4,1.238]
[1766567056878,3.41414158,2929.0,2928.3,0.0341495]
[1766567056879,2.5676,2929.0,2928.3,1.2379495]
[1766567057084,0.001,2929.1,2928.5,1.2019]
[1766567057245,0.001,2929.1,2928.4,0.93035475]
[1766567057246,0.001,2929.1,2928.7,1.2019]
[1766567057651,0.001,2929.1,2928.6,0.034146]
[1766567057652,2.5686,2929.3,2928.6,2.0949]
[1766567057871,0.001,2929.3,2928.7,1.2009]
[1766567058076,0.001,2929.3,2928.8,0.03414367]
[1766567058268,2.5686,2929.3,2928.7,0.03414484]
[1766567058467,2.5686,2929.3,2928.7,0.55418772]
[1766567058672,2.5686,2929.3,2928.7,1.75328772]
[1766567059270,0.01024135,2929.4,2928.8,1.1963]
[1766567059473,0.001,2929.6,2928.8,1.1963]
[1766567059474,0.001,2929.0,2928.8,1.1963]
[1766567059881,2.5676,2929.3,2928.8,1.1963]
[1766567060187,2.5573576,2929.3,2928.9,1.1935]
[1766567062158,0.01024135,2929.5,2928.9,1.1935]
[1766567062485,0.01024135,2929.5,2929.0,0.03414134]
[1766567062691,0.01024135,2929.5,2929.1,1.1735]
[1766567063295,0.01024135,2929.5,2928.8,4.02020882]
[1766567063296,2.5676,2929.4,2928.8,0.60589556]
[1766567063460,2.5676,2929.2,2928.1,1.1453]
[1766567063657,2.5676,2929.0,2928.2,0.894]
[1766567063859,2.5676,2928.8,2928.2,0.894]
[1766567064059,2.5676,2928.8,2928.2,2.0114]
[1766567064302,2.5676,2928.8,2928.2,2.58204862]
[1766567064503,0.25788413,2929.4,2928.2,2.58204862]
[1766567064504,2.5676,2928.6,2928.2,2.58204862]
[1766567064705,2.5676,2928.6,2928.2,2.0114]
[1766567065010,2.5676,2928.4,2927.9,3.4153993]
[1766567065312,2.5676,2928.4,2927.9,1.0627]
[1766567066882,2.5676,2928.7,2928.0,1.0093]
[1766567067084,2.5676,2928.6,2928.2,1.0093]
[1766567067279,2.5676,2928.6,2928.0,0.46509469]
[1766567067485,2.5676,2928.6,2928.0,1.47439469]
[1766567069314,2.5676,2928.6,2928.1,0.957]
[1766567070378,2.5676,2928.6,2928.2,0.03415067]
[1766567073120,2.5676,2928.6,2928.2,0.8561]
[1766567073891,2.5676,2928.6,2928.2,0.89025067]
[1766567074095,2.5676,2928.6,2928.2,0.8561]
[1766567074620,0.01124135,2928.8,2928.2,0.8561]
[1766567074918,0.001,2928.8,2928.4,0.8316]
[1766567075117,0.001,2928.8,2928.5,0.84144717]
[1766567075538,2.64268375,2929.0,2928.5,0.8073]
[1766567075824,0.02048375,2929.1,2928.7,0.7587]
[1766567076710,0.001,2929.3,2928.9,0.7382]
[1766567076900,0.001,2929.3,2929.0,0.7148]
[1766567077612,2.3336,2929.5,2929.0,0.7148]
[1766567077816,2.3336,2929.5,2929.1,0.7138]
[1766567078127,0.001,2929.6,2929.1,0.7138]
[1766567078726,0.001,2929.6,2929.1,1.12659279]
[1766567079108,0.001,2929.6,2929.2,0.70193901]
[1766567080221,2.32435865,2929.9,2929.2,0.69169766]
[1766567080914,2.32435865,2929.9,2929.2,0.65755865]
[1766567081530,2.3336,2929.8,2929.2,0.65755865]
[1766567083728,2.3336,2929.8,2929.2,1.15412207]
[1766567083914,2.3336,2929.8,2929.2,0.65755865]
[1766567084416,2.3336,2929.7,2929.2,0.65755865]
[1766567084997,2.3336,2929.7,2929.1,0.894]
[1766567085231,2.3233583,2929.7,2929.0,0.5352]
[1766567085732,2.3233583,2929.7,2929.0,3.94932948]
[1766567085927,2.3233583,2929.7,2929.0,1.27176865]
[1766567086633,2.3233583,2929.7,2929.0,4.68588924]
[1766567086926,2.3233583,2929.7,2929.1,0.5036]
[1766567088333,2.3233583,2929.7,2929.1,3.91754785]
[1766567090737,2.3233583,2929.7,2929.1,0.5036]
[1766567092934,2.3243583,2929.7,2929.1,0.5036]
[1766567093518,2.3243583,2929.7,2929.1,3.91761344]
[1766567094438,2.3243583,2929.7,2929.1,0.5036]
[1766567095736,2.3243583,2929.7,2928.9,3.41618719]
[1766567095933,2.3243583,2929.7,2929.0,3.41412572]
[1766567097622,2.3243583,2929.7,2929.0,4.57905919]
[1766567097835,2.3243583,2929.7,2929.0,4.86895919]
[1766567100237,2.3243583,2929.7,2929.0,1.45483347]
[1766567100443,2.3243583,2929.7,2929.0,0.2899]
[1766567101241,2.3243583,2929.7,2929.0,3.4140832]
[1766567101444,2.3243583,2929.7,2929.1,0.2187]
[1766567101814,2.3243583,2929.7,2929.0,3.4160832]
[1766567102011,2.3243583,2929.7,2929.0,0.002]
[1766567102540,2.3243583,2929.7,2929.0,0.2034]
[1766567102735,2.3243583,2929.7,2929.0,1.35599942]
[1766567104984,2.1011,2929.6,2929.0,0.002]
[1766567105245,2.1011,2929.5,2928.6,3.56922822]
[1766567106158,2.1011,2929.5,2928.6,0.1382]
[1766567106331,2.1011,2929.5,2929.0,0.1382]
[1766567106530,2.1021,2929.7,2929.1,4.5261893]
[1766567106750,2.1021,2929.7,2929.2,0.1382]
[1766567107852,0.55262424,2929.7,2929.2,0.1382]
[1766567108035,2.1011,2929.6,2928.8,0.1058]
[1766567108543,2.1011,2929.6,2928.8,3.52015205]
[1766567108743,2.1011,2929.6,2928.9,0.13994251]
[1766567108938,2.1011,2929.6,2929.0,0.0898]
[1766567109248,2.1011,2929.5,2929.0,0.0898]
[1766567113756,2.1011,2929.5,2929.0,3.50391703]
[1766567113953,0.001,2929.7,2929.0,3.50391703]
[1766567113954,0.001,2929.7,2929.2,0.0128]
[1766567114124,2.1021,2930.0,2929.6,0.0118]
[1766567114324,0.001,2930.0,2929.6,0.03413435]
[1766567114559,0.001,2930.0,2929.7,0.0118]
[1766567124348,0.001,2930.0,2929.5,0.893]
[1766567124548,2.1021,2930.0,2929.5,0.893]
[1766567125871,0.001,2930.2,2929.5,0.893]
[1766567125872,0.001,2930.2,2929.7,4.49204913]
[1766567126062,0.001,2930.2,2929.5,4.7372042]
[1766567126565,0.001,2930.2,2929.6,0.03413435]
[1766567126864,2.1011,2930.8,2929.7,4.49204913]
[1766567127070,2.1011,2930.7,2929.5,4.73715352]
[1766567127368,2.1011,2930.5,2929.6,0.47371535]
[1766567128570,2.1011,2930.3,2929.6,0.47371535]
[1766567129635,2.1011,2930.3,2929.6,3.88713749]
[1766567130238,2.09086005,2930.3,2929.6,3.88713749]
[1766567131655,2.09086005,2930.3,2929.6,0.47371535]
[1766567135274,1.9508,2930.2,2929.6,0.45980741]
[1766567136577,1.9508,2930.2,2929.5,1.32566475]
[1766567136779,1.9508,2930.2,2929.5,0.895]
[1766567136975,1.9508,2930.2,2929.5,0.002]
[1766567139078,1.9986,2930.1,2929.5,0.002]
[1766567139496,1.9986,2930.0,2929.5,0.002]
[1766567139861,1.9986,2930.0,2929.1,3.41400144]
[1766567140071,1.9986,2929.9,2929.2,0.893]
[1766567140587,1.9986,2929.9,2929.5,0.002]
[1766567141394,1.9986,2929.8,2929.2,0.893]
[1766567141997,1.9986,2929.8,2929.2,0.92713901]
[1766567146392,1.9986,2929.8,2929.2,0.893]
[1766567147971,0.62951309,2929.8,2929.2,0.893]
[1766567148298,1.9986,2929.7,2929.2,0.893]
[1766567155508,1.9986,2929.7,2929.2,4.30688933]
[1766567155720,1.9986,2929.9,2929.2,4.30688933]
[1766567156015,1.9986,2929.9,2929.3,0.03413784]
[1766567157186,1.9986,2929.9,2929.3,3.88221838]
[1766567157390,0.001,2930.0,2929.3,0.46844056]
[1766567157927,1.9996,2930.0,2929.3,0.46844056]
[1766567159414,1.9996,2930.0,2929.3,3.88219279]
[1766567160323,1.9996,2930.0,2929.3,0.43430272]
[1766567160626,1.9986,2929.9,2929.2,4.30689041]
[1766567160805,1.9986,2929.9,2929.3,0.03413784]
[1766567161527,1.9986,2929.9,2929.2,0.893]
[1766567161693,1.7805,2929.8,2929.1,0.002]
[1766567161895,6.8262393,2929.9,2928.5,3.41667895]
[1766567161896,1.7805,2929.6,2928.5,3.41667895]
[1766567162115,1.7805,2929.6,2928.5,4.30962581]
[1766567162319,1.7805,2929.6,2928.5,0.895]
[1766567162624,1.7805,2929.6,2928.6,3.41457979]
[1766567162807,1.7805,2929.6,2928.5,4.30970883]
[1766567163001,2.04461739,2929.6,2928.6,3.84573967]
[1766567163202,2.04461739,2929.6,2928.7,3.44862497]
[1766567163423,2.04461739,2929.6,2928.8,3.41436765]
[1766567165627,2.04461739,2929.6,2928.7,3.41448424]
[1766567165925,1.7805,2929.6,2928.7,6.82896848]
[1766567166126,1.7805,2929.6,2928.8,0.03414367]
[1766567166321,1.7805,2929.6,2928.9,0.893]
[1766567166527,0.001,2929.7,2929.0,0.03414134]
[1766567167024,3.41432218,2929.7,2929.0,0.03414134]
[1766567167228,1.7805,2929.6,2928.9,0.893]
[1766567167426,1.7805,2929.6,2928.6,3.41457277]
[1766567167729,1.7805,2929.5,2928.7,0.893]
[1766567168026,1.7805,2929.5,2928.7,4.30748277]
[1766567168398,1.7805,2929.5,2928.7,0.893]
[1766567168600,1.7805,2929.4,2928.7,4.30747816]
[1766567169029,1.7805,2929.4,2928.8,0.03414367]
[1766567171031,1.7805,2929.4,2928.7,0.893]
[1766567171032,1.7805,2929.3,2928.7,0.893]
[1766567171327,1.7805,2929.3,2928.7,4.30747669]
[1766567172313,1.7805,2929.3,2928.8,0.03414367]
[1766567173428,1.7805,2929.3,2928.7,0.893]
[1766567173814,1.7805,2929.3,2928.7,4.30748156]
[1766567174198,1.7805,2929.3,2928.8,0.03614367]
[1766567175814,1.7805,2929.3,2928.8,0.002]
[1766567178735,0.60549434,2929.3,2928.8,0.002]
[1766567178941,1.7805,2929.2,2928.8,0.002]
[1766567179404,1.7805,2929.2,2928.5,0.002]
[1766567181135,1.7805,2929.5,2928.6,4.49168916]
[1766567181535,1.7805,2929.5,2928.7,0.893]
[1766567181739,1.7805,2929.5,2928.8,0.53846892]
[1766567182109,1.7805,2929.5,2928.9,0.03414251]
[1766567182907,1.7805,2929.5,2928.9,3.44838933]
[1766567184325,1.7805,2929.5,2928.9,6.86264041]
[1766567184522,0.001,2929.6,2928.9,6.8284979]
[1766567184845,0.001,2929.7,2929.1,3.41401795]
[1766567185013,0.001,2929.7,2929.1,4.30701795]
[1766567185211,0.001,2929.7,2929.2,0.03413901]
[1766567185413,0.001,2929.7,2929.3,0.03413784]
[1766567185637,0.001,2929.7,2929.2,0.03413901]
[1766567185844,0.001,2929.7,2929.3,0.77551749]
[1766567188143,1.7815,2929.7,2929.3,0.77551749]
[1766567188444,1.7815,2929.7,2929.1,0.893]
[1766567189526,1.7815,2929.7,2928.9,3.41424691]
[1766567190433,3.41432247,2929.7,2928.9,3.41424691]
[1766567190742,1.7805,2929.6,2928.8,4.30732783]
[1766567190948,1.7805,2929.6,2928.9,0.43073278]
[1766567192318,1.7805,2929.6,2928.9,3.84494633]
[1766567194050,1.7805,2929.6,2928.9,0.43073278]
[1766567194947,3.41344738,2929.6,2928.9,0.43073278]
[1766567195250,1.6753,2929.5,2928.6,3.4146002]
[1766567196219,1.6753,2929.5,2928.5,4.30968882]
[1766567196541,1.6753,2929.5,2928.5,0.895]
[1766567196741,1.6656,2929.3,2928.5,0.895]
[1766567197553,1.6656,2929.3,2928.6,0.034146]
[1766567199824,3.41378596,2929.3,2928.6,0.034146]
[1766567200139,1.6656,2929.2,2928.5,0.895]
[1766567200331,1.6656,2929.2,2928.5,4.3097144]
[1766567200650,1.6656,2929.1,2928.5,0.895]
[1766567200851,1.6656,2929.1,2928.5,0.002]
[1766567201029,1.6656,2929.1,2928.4,0.002]
[1766567201551,1.6656,2929.0,2928.4,0.002]
[1766567201735,1.6656,2929.3,2928.4,0.002]
[1766567202057,1.6656,2929.1,2928.4,0.002]
[1766567203919,1.6656,2929.0,2928.4,0.002]
[1766567208231,1.6656,2928.9,2928.4,0.002]
[1766567221073,5.06352372,2929.4,2928.4,0.002]
[1766567221274,1.6498,2929.3,2928.4,4.49584209]
[1766567221478,1.6498,2929.3,2928.4,5.71801262]
[1766567222351,1.6498,2929.3,2928.5,0.03414717]
[1766567222548,5.06365412,2929.3,2928.5,0.03414717]
[1766567222852,1.6498,2929.2,2928.5,0.03414717]
[1766567223483,1.6498,2929.2,2928.5,3.44886439]
[1766567224382,1.6498,2929.2,2928.5,0.03414717]
[1766567224572,2.15626541,2929.2,2928.5,0.03414717]
[1766567225179,1.6498,2929.1,2928.5,0.03414717]
[1766567231593,1.6508,2929.1,2928.5,0.03414717]
[1766567234595,1.6508,2929.1,2928.4,3.4167828]
[1766567236793,1.6508,2929.1,2928.5,0.03414717]
[1766567236968,1.6508,2929.1,2928.4,0.03614834]
[1766567237263,1.6508,2929.1,2928.4,1.2617362]
[1766567238101,0.001,2929.1,2928.4,1.2617362]
[1766567240571,0.001,2929.1,2928.4,4.67646512]
[1766567243291,1.6508,2929.1,2928.4,4.67646512]
[1766567244499,1.6508,2929.1,2928.4,8.09129915]
[1766567244675,1.6508,2929.1,2928.4,4.64231678]
[1766567244999,1.6508,2929.1,2928.5,0.805923]
[1766567245181,0.001,2929.1,2928.6,0.034146]
[1766567246096,0.001,2929.1,2928.6,0.928146]
[1766567247303,0.001,2929.1,2928.6,4.34269089]
[1766567248799,0.001,2929.1,2928.6,0.928146]
[1766567249511,0.001,2929.1,2928.6,4.34273748]
[1766567249800,0.001,2929.1,2928.6,2.23407673]
[1766567250206,1.6508,2929.1,2928.6,2.23407673]
[1766567251503,1.6508,2929.1,2928.6,2.19993073]
[1766567252725,1.6508,2929.1,2928.6,0.894]
[1766567252924,1.6728,2929.0,2928.4,0.002]
[1766567269519,1.6459,2928.9,2928.4,0.002]
[1766567279026,1.6459,2928.9,2928.3,0.002]
[1766567279226,1.6459,2928.7,2928.3,0.002]
[1766567279758,1.6459,2928.7,2928.4,0.002]
[1766567284244,0.001,2928.9,2928.4,0.002]
[1766567285129,0.001,2928.9,2928.4,3.41683403]
[1766567285331,0.001,2929.1,2928.5,0.03414717]
[1766567285558,1.6854,2929.3,2928.6,1.58058152]
[1766567285756,1.6854,2929.3,2928.7,0.03414484]
[1766567285958,1.6854,2929.3,2928.6,1.61472752]
[1766567286253,1.6854,2929.3,2928.7,0.03414484]
[1766567287355,1.6854,2929.3,2928.6,1.58058152]
[1766567287356,1.6854,2929.3,2928.6,1.61472752]
[1766567287560,1.6854,2929.3,2928.7,0.50293549]
[1766567288360,1.6854,2929.3,2928.7,3.91741519]
[1766567289643,0.001,2929.5,2928.8,4.52782185]
[1766567289974,0.001,2929.5,2928.8,0.03414367]
[1766567290174,0.001,2929.5,2928.7,7.33189943]
[1766567290370,0.001,2929.5,2928.8,0.89124809]
[1766567290574,0.001,2929.5,2928.8,0.92539176]
[1766567291770,0.001,2929.5,2928.8,4.3396762]
[1766567291974,0.001,2929.5,2928.4,0.002]
[1766567291975,1.6844,2929.4,2928.4,0.002]
[1766567292175,1.6844,2929.2,2928.4,0.002]
[1766567292477,1.6844,2929.0,2928.3,0.002]
[1766567292676,1.6844,2928.8,2928.3,0.002]
[1766567292880,0.894,2929.2,2928.3,0.002]
[1766567292881,1.6844,2928.6,2928.3,0.002]
[1766567293245,1.6844,2929.0,2928.3,0.0361495]
[1766567293449,1.6946401,2928.9,2928.3,0.002]
[1766567293650,1.6946401,2928.9,2928.3,0.0361495]
[1766567294156,1.6946401,2928.9,2928.3,0.002]
[1766567294555,1.6946401,2928.9,2928.3,3.41693617]
[1766567295463,1.6946401,2928.9,2928.3,4.10376235]
[1766567296251,1.6946401,2928.9,2928.3,3.41692713]
[1766567299483,1.6946401,2928.9,2928.4,0.03414834]
[1766567300170,1.6946401,2928.9,2928.3,3.41692713]
[1766567303899,1.6946401,2928.9,2928.3,0.002]
[1766567304194,1.6844,2929.1,2928.4,0.894]
[1766567304358,1.6844,2929.1,2928.5,0.03414717]
[1766567305280,0.01028285,2929.0,2928.4,0.894]
[1766567305481,0.01028285,2929.0,2928.5,0.03414717]
[1766567306300,2.70959064,2929.8,2928.7,0.01363001]
[1766567306592,0.001,2930.2,2929.6,4.49367818]
[1766567306776,0.17805306,2930.0,2929.7,0.894]
[1766567307094,0.001,2930.2,2929.7,1.07205306]
[1766567307659,0.001,2930.2,2929.7,0.894]
[1766567308655,0.001,2930.2,2929.8,3.41320226]
[1766567308984,0.001,2930.2,2929.8,4.21938888]
[1766567309185,1.6854,2930.5,2929.8,4.21938888]
[1766567309388,1.6854,2930.5,2929.8,0.03413202]
[1766567309702,1.6854,2930.5,2929.7,4.30729624]
[1766567309873,0.001,2930.1,2929.7,4.30729624]
[1766567310373,1.6854,2930.1,2929.7,0.894]
[1766567310690,1.6854,2930.1,2929.7,4.30730289]
[1766567312085,0.001,2930.5,2929.8,0.03413202]
[1766567312584,0.001,2930.5,2929.7,8.4927052]
[1766567313059,0.001,2930.5,2929.7,12.98638338]
[1766567314391,0.894,2931.2,2929.8,0.03413202]
[1766567314596,1.6042,2931.1,2929.8,0.03413202]
[1766567314777,1.85412,2931.1,2929.9,1.64338342]
[1766567314978,1.85412,2931.1,2930.0,0.03412969]
[1766567315198,1.84387725,2931.1,2930.0,0.03412969]
[1766567316398,1.84387725,2931.1,2930.1,4.3068528]
[1766567316600,1.6528,2931.0,2930.2,0.03412736]
[1766567316898,1.6528,2930.9,2930.2,0.03412736]
[1766567318911,1.6528,2930.9,2930.2,3.44679746]
[1766567319371,1.6528,2930.9,2930.2,0.03412736]
[1766567320103,1.6528,2930.9,2930.2,3.44684813]
[1766567320287,1.64256494,2930.9,2930.2,3.44684813]
[1766567320488,1.64256494,2930.9,2930.2,0.80950597]
[1766567321517,1.64256494,2930.9,2930.2,4.22224071]
[1766567323516,1.64256494,2930.9,2930.2,0.77537861]
[1766567323820,1.64256494,2930.9,2930.1,4.3068489]
[1766567324690,1.6528,2930.8,2930.1,0.894]
[1766567325282,1.6528,2930.8,2930.0,0.002]
[1766567325622,1.6528,2930.8,2929.7,0.893]
[1766567325623,1.6528,2930.6,2929.7,0.893]
[1766567325932,1.6528,2930.4,2929.5,0.893]
[1766567326092,1.6528,2930.4,2929.3,3.41378231]
[1766567326295,1.6528,2930.4,2929.3,4.30678231]
[1766567326494,1.6528,2930.4,2929.4,3.41364835]
[1766567326809,1.6528,2930.2,2929.4,3.41364835]
[1766567327741,1.6528,2930.2,2929.4,7.90732653]
[1766567327906,1.6528,2930.6,2929.5,0.03413551]
[1766567328511,1.6528,2930.6,2929.4,11.32099485]
[1766567328738,1.6528,2930.6,2929.4,4.30664835]
[1766567328943,1.6528,2930.4,2929.5,0.77203964]
[1766567329650,1.6528,2930.4,2929.5,4.185487]
[1766567329855,1.6528,2930.4,2929.5,7.5990388]
[1766567330028,1.6528,2930.4,2929.5,4.185487]
[1766567331146,1.6528,2930.3,2929.5,4.185487]
[1766567331536,1.6528,2930.3,2929.5,0.77203964]
[1766567331746,1.6528,2930.2,2929.4,4.30661629]
[1766567332043,1.6528,2930.2,2929.5,4.52336303]
[1766567333136,1.6528,2930.5,2929.5,4.52336303]
[1766567333724,5.06520829,2930.5,2929.6,3.41343528]
[1766567334047,1.6528,2930.4,2929.7,0.03413318]
[1766567334357,1.6528,2930.3,2929.7,0.03413318]
[1766567334854,1.6528,2930.3,2929.5,3.41349759]
[1766567335648,1.6528,2930.3,2929.6,0.03413435]
[1766567335829,1.6528,2930.3,2929.6,3.44752271]
[1766567337759,1.6528,2930.3,2929.6,0.03413435]
[1766567338745,1.6528,2930.3,2929.6,1.25868826]
[1766567339436,1.6528,2930.3,2929.6,1.22455391]
[1766567339954,1.6528,2930.3,2929.6,4.63793168]
[1766567340161,1.6528,2930.3,2929.7,0.03413318]
[1766567340346,1.6528,2930.3,2929.6,4.63793168]
[1766567340347,3.41262502,2930.3,2929.6,1.22455391]
[1766567340520,1.6528,2930.2,2929.6,1.22455391]
[1766567340931,1.6528,2930.2,2929.5,0.002]
[1766567342226,1.7029,2930.1,2929.5,0.002]
[1766567343873,1.7029,2930.1,2929.5,0.03613551]
[1766567344231,1.7029,2930.3,2929.6,3.41343528]
[1766567350861,1.7029,2930.3,2929.7,0.03413318]
[1766567351032,0.001,2930.4,2930.0,4.48922752]
[1766567351236,0.001,2930.4,2930.1,0.03412852]
[1766567351863,0.001,2930.4,2930.0,4.48922752]
[1766567352038,0.001,2930.4,2930.0,4.52335721]
[1766567352348,0.001,2930.4,2930.1,0.79363446]
[1766567354258,0.001,2930.4,2930.1,4.206477]
[1766567354463,0.001,2930.4,2930.1,4.24060552]
[1766567355237,0.001,2930.4,2930.1,0.82776298]
[1766567355577,1.7029,2930.8,2930.1,0.82776298]
[1766567356279,1.7029,2930.8,2930.2,0.87298891]
[1766567357288,1.7029,2930.8,2930.2,4.28571586]
[1766567357457,1.7029,2930.8,2930.2,0.87298891]
[1766567358887,1.7029,2930.8,2930.2,0.90711627]
[1766567359053,1.7029,2930.8,2930.2,4.31983655]
[1766567359252,1.7029,2930.8,2930.3,0.5113471]
[1766567361844,1.7029,2930.8,2930.2,0.90711627]
[1766567362038,1.7029,2930.8,2930.2,0.87298891]
[1766567362674,1.7039,2930.8,2930.2,0.87298891]
[1766567367884,1.7039,2930.8,2930.2,4.28572169]
[1766567368672,1.7039,2930.8,2930.3,0.03412619]
[1766567370076,1.7039,2930.8,2930.2,1.76598891]
[1766567370259,1.7039,2930.8,2930.2,0.893]
[1766567373594,1.7039,2930.8,2930.2,4.33985502]
[1766567375284,1.7039,2930.8,2930.2,0.893]
[1766567379268,1.7039,2930.8,2930.2,4.30571257]
[1766567381004,1.7039,2930.8,2930.1,0.002]
[1766567381164,1.7039,2930.8,2930.1,2.02671569]
[1766567384108,1.7039,2930.8,2930.1,5.43953261]
[1766567385709,1.7039,2930.8,2930.2,0.03412736]
[1766567386195,1.7039,2930.8,2930.3,3.41261986]
[1766567386502,1.6192,2931.1,2930.4,0.03412503]
[1766567387281,1.6192,2931.1,2930.3,3.41261986]
[1766567387573,1.6192,2931.1,2930.4,0.79018474]
[1766567387771,1.6182,2930.9,2930.1,1.13371569]
[1766567388073,1.6182,2930.9,2930.1,0.002]
[1766567390881,1.6182,2930.9,2930.1,3.44898132]
[1766567391081,1.6182,2930.9,2930.1,6.86183412]
[1766567391281,1.6182,2930.9,2930.1,6.8277056]
[1766567391481,1.6182,2930.9,2930.2,0.03412736]
[1766567392301,1.6182,2930.9,2930.1,4.63604611]
[1766567393201,1.6182,2930.9,2930.2,0.03412736]
[1766567394003,1.6182,2930.9,2930.2,3.4468527]
[1766567394507,1.6182,2930.9,2930.2,6.85958903]
[1766567394800,1.6182,2930.9,2930.3,0.80827823]
[1766567395002,1.6182,2930.9,2930.4,0.03412503]
[1766567395383,1.6182,2930.9,2930.3,0.80827823]
[1766567395578,1.6192,2930.9,2930.3,0.80827823]
[1766567396792,1.6192,2930.9,2930.3,4.22088092]
[1766567397182,1.6192,2930.9,2930.1,0.895]
[1766567397388,1.6192,2930.9,2930.1,4.30776973]
[1766567400207,1.6192,2930.9,2930.1,7.72062253]
[1766567400411,1.6192,2930.9,2930.2,0.03412736]
[1766567401311,1.6192,2930.9,2930.2,3.44681771]
[1766567401708,1.6192,2930.9,2930.2,7.63521953]
[1766567402015,1.6192,2930.9,2930.2,7.60109217]
[1766567402315,1.6192,2930.9,2930.3,0.03412619]
[1766567404020,1.6192,2930.9,2930.4,3.41250341]
[1766567405618,1.6192,2930.9,2930.3,3.44669499]
[1766567407798,1.6192,2930.9,2930.3,7.71232393]
[1766567407998,1.6192,2930.9,2930.3,7.67819774]
[1766567408195,1.6192,2930.9,2930.4,0.03412503]
[1766567408729,1.6192,2930.9,2930.5,3.41238696]
[1766567409023,0.001,2930.9,2930.5,3.41238696]
[1766567409188,0.001,2930.9,2930.5,7.25472603]
[1766567409391,0.001,2930.9,2930.5,8.14772603]
[1766567410628,0.001,2931.1,2930.5,8.14772603]
[1766567411239,1.7676,2931.0,2930.5,0.42995211]
[1766567411396,1.7676,2931.0,2930.4,4.305445]
[1766567411596,1.7676,2931.0,2930.5,3.41237434]
[1766567411792,1.7676,2931.0,2930.4,4.30546423]
[1766567412227,1.7676,2931.0,2930.4,0.893]
[1766567412629,1.7676,2931.0,2930.4,4.30549791]
[1766567412929,1.7676,2931.0,2930.4,0.893]
[1766567415431,1.7676,2931.0,2930.4,4.30549636]